Workbook

Sheet APROV 1
A1: SECRETARÍA DE EDUCACIÓN PÚBLICA DEL ESTADO DE BAJA CALIFORNIA SUR
A2: DIRECCIÓN DE EDUCACIÓN SECUNDARIA
A3: CICLO ESCOLAR 2018 - 2019
A5: APROVECHAMIENTO, BAJO APROVECHAMIENTO Y REPROBACIÓN
A7: DIRECCIÓN: EDUCACIÓN SECUNDARIA DIRECTOR: PROFR. RUMUALDO RAMÍREZ GUTIERRÉZ PERIODO DE EVALUACIÓN: PRIMERO
A9: Promedio de Aprovechamiento de los Campos de Formación Académica | AD9: Promedio de Aprovechamiento de las Áreas de Desarrollo Personal y Social | AU9: Promedio de Aprovechamiento de los Clubes de Autonomía Curricular
A10: Modalidad | B10: Lengua Materna (Español) | E10: Lengua Extranjera (Inglés) | H10: Matemáticas | K10: Ciencias y Tecnología Biología | N10: Historia | Q10: Geografía | T10: Formación Cívica y Ética | W10: Prom. Final | AD10: Modalidad | AE10: Artes | AH10: Tutoría y Desarrollo Socioemocional | AK10: Educación Física | AN10: Prom. Final | AU10: Modalidad | AV10: Club 1 Necesidad | AY10: Club 2 Interés | BB10: Prom. Final
B11: ND | C11: CALIF | E11: ND | F11: CALIF | H11: ND | I11: CALIF | K11: ND | L11: CALIF | N11: ND | O11: CALIF | Q11: ND | R11: CALIF | T11: ND | U11: CALIF | W11: ND | X11: CALIF | AE11: ND | AH11: ND | AK11: ND | AN11: ND | AV11: ND | AY11: ND | BB11: ND
A12: Grales. | B12: =IFERROR(IF(AND(C12<=10,C12>=9.5),"IV",IF(AND(C12<9.5,C12>=7.5),"III",IF(AND(C12<7.5,C12>=6),"II",IF(AND(C12<6,C12>=5),"I","")))),"") -> III | C12: 8.4 | E12: =IFERROR(IF(AND(F12<=10,F12>=9.5),"IV",IF(AND(F12<9.5,F12>=7.5),"III",IF(AND(F12<7.5,F12>=6),"II",IF(AND(F12<6,F12>=5),"I","")))),"") -> III | F12: 8.4 | H12: =IFERROR(IF(AND(I12<=10,I12>=9.5),"IV",IF(AND(I12<9.5,I12>=7.5),"III",IF(AND(I12<7.5,I12>=6),"II",IF(AND(I12<6,I12>=5),"I","")))),"") -> III | I12: 8.2 | K12: =IFERROR(IF(AND(L12<=10,L12>=9.5),"IV",IF(AND(L12<9.5,L12>=7.5),"III",IF(AND(L12<7.5,L12>=6),"II",IF(AND(L12<6,L12>=5),"I","")))),"") -> III | L12: 8.4 | N12: =IFERROR(IF(AND(O12<=10,O12>=9.5),"IV",IF(AND(O12<9.5,O12>=7.5),"III",IF(AND(O12<7.5,O12>=6),"II",IF(AND(O12<6,O12>=5),"I","")))),"") -> III | O12: 8.5 | Q12: =IFERROR(IF(AND(R12<=10,R12>=9.5),"IV",IF(AND(R12<9.5,R12>=7.5),"III",IF(AND(R12<7.5,R12>=6),"II",IF(AND(R12<6,R12>=5),"I","")))),"") -> III | R12: 8.5 | T12: =IFERROR(IF(AND(U12<=10,U12>=9.5),"IV",IF(AND(U12<9.5,U12>=7.5),"III",IF(AND(U12<7.5,U12>=6),"II",IF(AND(U12<6,U12>=5),"I","")))),"") -> III | U12: 8.6 | W12: =IFERROR(IF(AND(X12<=10,X12>=9.5),"IV",IF(AND(X12<9.5,X12>=7.5),"III",IF(AND(X12<7.5,X12>=6),"II",IF(AND(X12<6,X12>=5),"I","")))),"") -> III | X12: =ROUND(IFERROR(AVERAGE(C12,F12,I12,L12,O12,R12,U12),""),1) -> 8.4 | AD12: Grales. | AE12: III | AH12: III | AK12: IV | AN12: =Nivel(AE12,AH12,AK12) -> III | AU12: Grales. | AV12: III | AY12: III | BB12: =Nivel_2(AV12,AY12) -> III
A13: Técs. | B13: III | C13: 8.3 | E13: III | F13: 8.3 | H13: III | I13: 8.2 | K13: III | L13: 8.1 | N13: III | O13: 8.3 | Q13: III | R13: 8.3 | T13: III | U13: 8.4 | W13: III | X13: =ROUND(IFERROR(AVERAGE(C13,F13,I13,L13,O13,R13,U13),""),1) -> 8.3 | AD13: Técs. | AE13: III | AH13: IV | AK13: IV | AN13: =Nivel(AE13,AH13,AK13) -> IV | AU13: Técs. | AV13: III | AY13: III | BB13: =Nivel_2(AV13,AY13) -> III
A14: Telesec. | B14: III | C14: 8.1 | E14: III | F14: 8 | H14: III | I14: 8 | K14: III | L14: 8.1 | N14: III | O14: 8.1 | Q14: III | R14: 8.1 | T14: III | U14: 8.4 | W14: III | X14: =ROUND(IFERROR(AVERAGE(C14,F14,I14,L14,O14,R14,U14),""),1) -> 8.1 | AD14: Telesec. | AE14: III | AH14: III | AK14: IV | AN14: III | AU14: Telesec. | AV14: III | AY14: III | BB14: III
X15: =IFERROR(AVERAGE(C15,F15,I15,L15,O15,R15,U15),"") -> 
A19: Gral. | B19: =IFERROR(IF(AND(C19<=10,C19>=9.5),"IV",IF(AND(C19<9.5,C19>=7.5),"III",IF(AND(C19<7.5,C19>=6),"II",IF(AND(C19<6,C19>=5),"I","")))),"") -> III | C19: =ROUND(IFERROR(AVERAGE(C12:D18),""),1) -> 8.3 | E19: =IFERROR(IF(AND(F19<=10,F19>=9.5),"IV",IF(AND(F19<9.5,F19>=7.5),"III",IF(AND(F19<7.5,F19>=6),"II",IF(AND(F19<6,F19>=5),"I","")))),"") -> III | F19: =ROUND(IFERROR(AVERAGE(F12:G18),""),1) -> 8.2 | H19: =IFERROR(IF(AND(I19<=10,I19>=9.5),"IV",IF(AND(I19<9.5,I19>=7.5),"III",IF(AND(I19<7.5,I19>=6),"II",IF(AND(I19<6,I19>=5),"I","")))),"") -> III | I19: =ROUND(IFERROR(AVERAGE(I12:J18),""),1) -> 8.1 | K19: =IFERROR(IF(AND(L19<=10,L19>=9.5),"IV",IF(AND(L19<9.5,L19>=7.5),"III",IF(AND(L19<7.5,L19>=6),"II",IF(AND(L19<6,L19>=5),"I","")))),"") -> III | L19: =ROUND(IFERROR(AVERAGE(L12:M18),""),1) -> 8.2 | N19: =IFERROR(IF(AND(O19<=10,O19>=9.5),"IV",IF(AND(O19<9.5,O19>=7.5),"III",IF(AND(O19<7.5,O19>=6),"II",IF(AND(O19<6,O19>=5),"I","")))),"") -> III | O19: =ROUND(IFERROR(AVERAGE(O12:P18),""),1) -> 8.3 | Q19: =IFERROR(IF(AND(R19<=10,R19>=9.5),"IV",IF(AND(R19<9.5,R19>=7.5),"III",IF(AND(R19<7.5,R19>=6),"II",IF(AND(R19<6,R19>=5),"I","")))),"") -> III | R19: =ROUND(IFERROR(AVERAGE(R12:S18),""),1) -> 8.3 | T19: =IFERROR(IF(AND(U19<=10,U19>=9.5),"IV",IF(AND(U19<9.5,U19>=7.5),"III",IF(AND(U19<7.5,U19>=6),"II",IF(AND(U19<6,U19>=5),"I","")))),"") -> III | U19: =ROUND(IFERROR(AVERAGE(U12:V18),""),1) -> 8.5 | W19: =IFERROR(IF(AND(X19<=10,X19>=9.5),"IV",IF(AND(X19<9.5,X19>=7.5),"III",IF(AND(X19<7.5,X19>=6),"II",IF(AND(X19<6,X19>=5),"I","")))),"") -> III | X19: =ROUND(IFERROR(AVERAGE(X12:X18),""),1) -> 8.3 | AD19: Gral. | AE19: =total(AE12,AE13,AE14,AE15,AE16,AE17,AE18) -> III | AH19: =total(AH12,AH13,AH14,AH15,AH16,AH17,AH18) -> III | AK19: =total(AK12,AK13,AK14,AK15,AK16,AK17,AK18) -> IV | AN19: =total(AN12,AN13,AN14,AN15,AN16,AN17,AN18) -> III | AU19: Gral. | AV19: =total(AV12,AV13,AV14,AV15,AV16,AV17,AV18) -> III | AY19: =total(AY12,AY13,AY14,AY15,AY16,AY17,AY18) -> III | BB19: =total(BB12,BB13,BB14,BB15,BB16,BB17,BB18) -> III
A21: Campos de Formación Académica en situación de riesgo de no acreditar | Z21: General | AD21: Áreas de Desarrollo Personal y Social en situación de riesgo de no acreditar | AQ21: General | AU21: Clubes de Autonomía Curricular en situación de riesgo de no acreditar | BF21: General
A22: Modalidad | B22: Lengua Materna (Español) | E22: Lengua Extranjera (Inglés) | H22: Matemáticas | K22: Ciencias y Tecnología Biología | N22: Historia | Q22: Geografía | T22: Formación Cívica y Ética | W22: Total | AD22: Modalidad | AE22: Artes | AH22: Tutoría y Desarrollo Socioemocional | AK22: Educación Física | AN22: Total | AU22: Modalidad | AV22: Club 1 Necesidad | AY22: Club 2 Interés | BB22: Total
B23: 5 | C23: 6 | D23: T | E23: 5 | F23: 6 | G23: T | H23: 5 | I23: 6 | J23: T | K23: 5 | L23: 6 | M23: T | N23: 5 | O23: 6 | P23: T | Q23: 5 | R23: 6 | S23: T | T23: 5 | U23: 6 | V23: T | W23: 5 | X23: 6 | Z23: 5 | AA23: 6 | AB23: T | AE23: ND I | AF23: ND II | AG23: T | AH23: ND I | AI23: ND II | AJ23: T | AK23: ND I | AL23: ND II | AM23: T | AN23: ND I | AO23: ND II | AQ23: ND I | AR23: ND II | AS23: T | AV23: ND I | AW23: ND II | AX23: T | AY23: ND I | AZ23: ND II | BA23: T | BB23: ND I | BC23: ND II | BD23: T | BF23: ND I | BG23: ND II | BH23: T
A24: Grales. | B24: 216 | C24: 507 | D24: =IF(SUM(B24,C24)=0,"",SUM(B24,C24)) -> 723 | E24: 187 | F24: 640 | G24: =IF(SUM(E24,F24)=0,"",SUM(E24,F24)) -> 827 | H24: 288 | I24: 676 | J24: =IF(SUM(H24,I24)=0,"",SUM(H24,I24)) -> 964 | K24: 220 | L24: 535 | M24: =IF(SUM(K24,L24)=0,"",SUM(K24,L24)) -> 755 | N24: 232 | O24: 583 | P24: =IF(SUM(N24,O24)=0,"",SUM(N24,O24)) -> 815 | Q24: 203 | R24: 579 | S24: =IF(SUM(Q24,R24)=0,"",SUM(Q24,R24)) -> 782 | T24: 178 | U24: 561 | V24: =IF(SUM(T24,U24)=0,"",SUM(T24,U24)) -> 739 | W24: =IF(SUM(B24,E24,H24,K24,N24,Q24,T24)=0,"",SUM(B24,E24,H24,K24,N24,Q24,T24)) -> 1524 | X24: =IF(SUM(C24,F24,I24,L24,O24,R24,U24)=0,"",SUM(C24,F24,I24,L24,O24,R24,U24)) -> 4081 | Z24: 1109 | AA24: 2130 | AB24: =IF(SUM(Z24,AA24)=0,"",SUM(Z24,AA24)) -> 3239 | AD24: Grales. | AE24: 175 | AF24: 838 | AG24: =IF(SUM(AE24:AF24)=0,"",SUM(AE24:AF24)) -> 1013 | AH24: 66 | AI24: 338 | AJ24: =IF(SUM(AH24:AI24)=0,"",SUM(AH24:AI24)) -> 404 | AK24: 31 | AL24: 324 | AM24: =IF(SUM(AK24:AL24)=0,"",SUM(AK24:AL24)) -> 355 | AN24: =IF(SUM(AE24,AH24,AK24)=0,"",SUM(AE24,AH24,AK24)) -> 272 | AO24: =IF(SUM(AF24,AI24,AL24)=0,"",SUM(AF24,AI24,AL24)) -> 1500 | AQ24: 227 | AR24: 1141 | AS24: =IF(SUM(AQ24,AR24)=0,"",SUM(AQ24,AR24)) -> 1368 | AU24: Grales. | AV24: 61 | AW24: 549 | AX24: =IF(SUM(AV24:AW24)=0,"",SUM(AV24:AW24)) -> 610 | AY24: 119 | AZ24: 556 | BA24: =IF(SUM(AY24:AZ24)=0,"",SUM(AY24:AZ24)) -> 675 | BB24: =IF(SUM(AV24,AY24)=0,"",SUM(AV24,AY24)) -> 180 | BC24: =IF(SUM(AW24,AZ24)=0,"",SUM(AW24,AZ24)) -> 1105 | BD24: =IF(SUM(BB24:BC24)=0,"",SUM(BB24:BC24)) -> 1285 | BF24: 188 | BG24: 1136 | BH24: =IF(SUM(BF24,BG24)=0,"",SUM(BF24,BG24)) -> 1324
A25: Técs. | B25: 190 | C25: 329 | D25: =IF(SUM(B25,C25)=0,"",SUM(B25,C25)) -> 519 | E25: 192 | F25: 427 | G25: =IF(SUM(E25,F25)=0,"",SUM(E25,F25)) -> 619 | H25: 171 | I25: 486 | J25: =IF(SUM(H25,I25)=0,"",SUM(H25,I25)) -> 657 | K25: 141 | L25: 509 | M25: =IF(SUM(K25,L25)=0,"",SUM(K25,L25)) -> 650 | N25: 286 | O25: 580 | P25: =IF(SUM(N25,O25)=0,"",SUM(N25,O25)) -> 866 | Q25: 127 | R25: 511 | S25: =IF(SUM(Q25,R25)=0,"",SUM(Q25,R25)) -> 638 | T25: 203 | U25: 406 | V25: =IF(SUM(T25,U25)=0,"",SUM(T25,U25)) -> 609 | W25: =IF(SUM(B25,E25,H25,K25,N25,Q25,T25)=0,"",SUM(B25,E25,H25,K25,N25,Q25,T25)) -> 1310 | X25: =IF(SUM(C25,F25,I25,L25,O25,R25,U25)=0,"",SUM(C25,F25,I25,L25,O25,R25,U25)) -> 3248 | Z25: 879 | AA25: 1672 | AB25: =IF(SUM(Z25,AA25)=0,"",SUM(Z25,AA25)) -> 2551 | AD25: Técs. | AE25: 75 | AF25: 552 | AG25: =IF(SUM(AE25:AF25)=0,"",SUM(AE25:AF25)) -> 627 | AH25: 59 | AI25: 385 | AJ25: =IF(SUM(AH25:AI25)=0,"",SUM(AH25:AI25)) -> 444 | AK25: 18 | AL25: 96 | AM25: 114 | AN25: =IF(SUM(AE25,AH25,AK25)=0,"",SUM(AE25,AH25,AK25)) -> 152 | AO25: =IF(SUM(AF25,AI25,AL25)=0,"",SUM(AF25,AI25,AL25)) -> 1033 | AQ25: 97 | AR25: 520 | AS25: =IF(SUM(AQ25,AR25)=0,"",SUM(AQ25,AR25)) -> 617 | AU25: Técs. | AV25: 59 | AW25: 497 | AX25: =IF(SUM(AV25:AW25)=0,"",SUM(AV25:AW25)) -> 556 | AY25: 62 | AZ25: 579 | BA25: =IF(SUM(AY25:AZ25)=0,"",SUM(AY25:AZ25)) -> 641 | BB25: =IF(SUM(AV25,AY25)=0,"",SUM(AV25,AY25)) -> 121 | BC25: =IF(SUM(AW25,AZ25)=0,"",SUM(AW25,AZ25)) -> 1076 | BD25: 1197 | BF25: 228 | BG25: 926 | BH25: =IF(SUM(BF25,BG25)=0,"",SUM(BF25,BG25)) -> 1154
A26: Telesec. | B26: 41 | C26: 202 | D26: 243 | E26: 49 | F26: 172 | G26: 221 | H26: 36 | I26: 246 | J26: 282 | K26: 42 | L26: 179 | M26: 221 | N26: 51 | O26: 212 | P26: 263 | Q26: 45 | R26: 186 | S26: 231 | T26: 26 | U26: 136 | V26: 162 | W26: 290 | X26: 1333 | Z26: 118 | AA26: 449 | AB26: 567 | AD26: Telesec. | AE26: 41 | AF26: 172 | AG26: 213 | AH26: 19 | AI26: 91 | AJ26: 110 | AK26: 15 | AL26: 55 | AM26: 70 | AN26: 75 | AO26: 318 | AQ26: 48 | AR26: 165 | AS26: 213 | AU26: Telesec. | AV26: 24 | AW26: 182 | AX26: 206 | AY26: 13 | AZ26: 156 | BA26: 169 | BB26: 37 | BC26: 338 | BD26: 375 | BF26: 31 | BG26: 231 | BH26: 262
A31: Total | B31: =IF(SUM(B24:B30)=0,"",SUM(B24:B30)) -> 447 | C31: =IF(SUM(C24:C30)=0,"",SUM(C24:C30)) -> 1038 | D31: 1485 | E31: 428 | F31: 1239 | G31: 1667 | H31: 495 | I31: 1408 | J31: 1903 | K31: 403 | L31: 1223 | M31: 1626 | N31: 569 | O31: 1375 | P31: 1944 | Q31: 375 | R31: 1276 | S31: 1651 | T31: 407 | U31: 1103 | V31: 1510 | W31: =IF(SUM(W24:W30)=0,"",SUM(W24:W30)) -> 3124 | X31: =IF(SUM(X24:Y30)=0,"",SUM(X24:Y30)) -> 8662 | Z31: =IF(SUM(Z24:Z30)=0,"",SUM(Z24:Z30)) -> 2106 | AA31: =IF(SUM(AA24:AA30)=0,"",SUM(AA24:AA30)) -> 4251 | AB31: =IF(SUM(AB24:AB30)=0,"",SUM(AB24:AB30)) -> 6357 | AD31: Total | AE31: =IF(SUM(AE24:AE30)=0,"",SUM(AE24:AE30)) -> 291 | AF31: 1562 | AG31: 1853 | AH31: 144 | AI31: 814 | AJ31: 958 | AK31: 64 | AL31: 475 | AM31: 539 | AN31: 499 | AO31: 2851 | AQ31: =IF(SUM(AQ24:AQ30)=0,"",SUM(AQ24:AQ30)) -> 372 | AR31: =IF(SUM(AR24:AR30)=0,"",SUM(AR24:AR30)) -> 1826 | AS31: =IF(SUM(AS24:AS30)=0,"",SUM(AS24:AS30)) -> 2198 | AU31: Total | AV31: =IF(SUM(AV24:AV30)=0,"",SUM(AV24:AV30)) -> 144 | AW31: 1228 | AX31: 1372 | AY31: 194 | AZ31: 1291 | BA31: 1485 | BB31: =IF(SUM(BB24:BB30)=0,"",SUM(BB24:BB30)) -> 338 | BC31: 2519 | BD31: 2857 | BF31: =IF(SUM(BF24:BF30)=0,"",SUM(BF24:BF30)) -> 447 | BG31: =IF(SUM(BG24:BG30)=0,"",SUM(BG24:BG30)) -> 2293 | BH31: =IF(SUM(BH24:BH30)=0,"",SUM(BH24:BH30)) -> 2740
A33: Nota: Para las columnas "Alumnos con uno o mas Campos, Áreas, Clubes en riesgo de no acreditar" se registrará el Total de Alumnos en esta situación, se debrá anotar una sola vez, no importando la cantidad de Campos reprobados o con seis, ni las Áreas o Clubes con Niveles de Desempeño I y II.

Sheet Gráfica APROV 1
B1: Lengua Materna (Español) | C1: Lengua Extranjera (Inglés) | D1: Matemáticas | E1: Ciencias y Tecnología Biología | F1: Historia | G1: Geografía | H1: Formación Cívica y Ética
B4: GRAFICAS PARA DESARROLLO PERSONAL
B6: Artes | C6: Tutoría y Desarrollo Socioemocional | D6: Educación Física
B7: =Graficas(+'APROV 1'!AE19) -> 3 | C7: =Graficas(+'APROV 1'!AH19) -> 3 | D7: =Graficas(+'APROV 1'!AK19) -> 4
B9: GRAFICA PARA AUTONOMIA CURRICULAR
B11: Clubes de Necesidad | C11: Clubes de Interés
B12: =Graficas(+'APROV 1'!AV19) -> 3 | C12: =Graficas(+'APROV 1'!AY19) -> 3

Sheet APROV 2 y 3
A1: SECRETARÍA DE EDUCACIÓN PÚBLICA DEL ESTADO DE BAJA CALIFORNIA SUR
A2: DIRECCIÓN DE EDUCACIÓN SECUNDARIA
A3: CICLO ESCOLAR 2018 - 2019
A5: APROVECHAMIENTO, BAJO APROVECHAMIENTO Y REPROBACIÓN
A7: DIRECCIÓN: EDUCACIÓN SECUNDARIA DIRECTOR: PROFR. RUMUALDO RAMÍREZ GUTIERRÉZ PERIODO DE EVALUACIÓN: PRIMERO
A9: Promedio de Aprovechamiento de los Campos de Formación Académica | AA9: Promedio de Aprovechamiento de las Áreas de Desarrollo Personal y Social | AR9: Promedio de Aprovechamiento de los Clubes de Autonomía Curricular
A10: Modalidad | B10: Español II | E10: Segunda Lengua Inglés II | H10: Matemáticas II | K10: Ciencias II (Enfásis en Física) | N10: Historia I | Q10: Formación Cívica y Ética I | T10: Prom. Final | AA10: Modalidad | AB10: Artes | AE10: Tutoría y Desarrollo Socioemocional | AH10: Educación Física | AK10: Prom. Final | AR10: Modalidad | AS10: Club 1 Necesidad | AV10: Club 2 Interés | AY10: Prom. Final
B11: ND | C11: CALIF | E11: ND | F11: CALIF | H11: ND | I11: CALIF | K11: ND | L11: CALIF | N11: ND | O11: CALIF | Q11: ND | R11: CALIF | T11: ND | U11: CALIF | AB11: ND | AE11: ND | AH11: ND | AK11: ND | AS11: ND | AV11: ND | AY11: ND
A12: Grales. | B12: =IFERROR(IF(AND(C12<=10,C12>=9.5),"IV",IF(AND(C12<9.5,C12>=7.5),"III",IF(AND(C12<7.5,C12>=6),"II",IF(AND(C12<6,C12>=5),"I","")))),"") -> III | C12: 8.3 | E12: =IFERROR(IF(AND(F12<=10,F12>=9.5),"IV",IF(AND(F12<9.5,F12>=7.5),"III",IF(AND(F12<7.5,F12>=6),"II",IF(AND(F12<6,F12>=5),"I","")))),"") -> III | F12: 8.4 | H12: =IFERROR(IF(AND(I12<=10,I12>=9.5),"IV",IF(AND(I12<9.5,I12>=7.5),"III",IF(AND(I12<7.5,I12>=6),"II",IF(AND(I12<6,I12>=5),"I","")))),"") -> III | I12: 8.1 | K12: =IFERROR(IF(AND(L12<=10,L12>=9.5),"IV",IF(AND(L12<9.5,L12>=7.5),"III",IF(AND(L12<7.5,L12>=6),"II",IF(AND(L12<6,L12>=5),"I","")))),"") -> III | L12: 8.4 | N12: =IFERROR(IF(AND(O12<=10,O12>=9.5),"IV",IF(AND(O12<9.5,O12>=7.5),"III",IF(AND(O12<7.5,O12>=6),"II",IF(AND(O12<6,O12>=5),"I","")))),"") -> III | O12: 8.5 | Q12: =IFERROR(IF(AND(R12<=10,R12>=9.5),"IV",IF(AND(R12<9.5,R12>=7.5),"III",IF(AND(R12<7.5,R12>=6),"II",IF(AND(R12<6,R12>=5),"I","")))),"") -> III | R12: 8.6 | T12: =IFERROR(IF(AND(U12<=10,U12>=9.5),"IV",IF(AND(U12<9.5,U12>=7.5),"III",IF(AND(U12<7.5,U12>=6),"II",IF(AND(U12<6,U12>=5),"I","")))),"") -> III | U12: =ROUND(IFERROR(AVERAGE(C12,F12,I12,L12,O12,R12),""),1) -> 8.4 | AA12: Grales. | AB12: III | AE12: IV | AH12: IV | AK12: =Nivel(AB12,AE12,AH12) -> IV | AR12: Grales. | AS12: IV | AV12: III | AY12: =Nivel_2(AS12,AV12) -> IV
A13: Técs. | B13: III | C13: 8.1 | E13: III | F13: 8 | H13: III | I13: 8 | K13: III | L13: 8.1 | N13: III | O13: 8.2 | Q13: III | R13: 8.3 | T13: III | U13: =ROUND(IFERROR(AVERAGE(C13,F13,I13,L13,O13,R13),""),1) -> 8.1 | AA13: Técs. | AB13: III | AE13: IV | AH13: IV | AK13: =Nivel(AB13,AE13,AH13) -> IV | AR13: Técs. | AS13: III | AV13: IV | AY13: =Nivel_2(AS13,AV13) -> IV
A14: Telesec. | B14: III | C14: 8.2 | E14: III | F14: 8 | H14: III | I14: 8 | K14: III | L14: 8 | N14: III | O14: 8 | Q14: III | R14: 8.4 | T14: III | U14: =ROUND(IFERROR(AVERAGE(C14,F14,I14,L14,O14,R14),""),1) -> 8.1 | AA14: Telesec. | AB14: III | AE14: III | AH14: IV | AK14: III | AR14: Telesec. | AS14: III | AV14: III | AY14: III
U15: =IFERROR(AVERAGE(C15,F15,I15,L15,O15,R15),"") -> 
A19: Gral. | B19: =IFERROR(IF(AND(C19<=10,C19>=9.5),"IV",IF(AND(C19<9.5,C19>=7.5),"III",IF(AND(C19<7.5,C19>=6),"II",IF(AND(C19<6,C19>=5),"I","")))),"") -> III | C19: =ROUND(IFERROR(AVERAGE(C12:D18),""),1) -> 8.2 | E19: =IFERROR(IF(AND(F19<=10,F19>=9.5),"IV",IF(AND(F19<9.5,F19>=7.5),"III",IF(AND(F19<7.5,F19>=6),"II",IF(AND(F19<6,F19>=5),"I","")))),"") -> III | F19: =ROUND(IFERROR(AVERAGE(F12:G18),""),1) -> 8.1 | H19: =IFERROR(IF(AND(I19<=10,I19>=9.5),"IV",IF(AND(I19<9.5,I19>=7.5),"III",IF(AND(I19<7.5,I19>=6),"II",IF(AND(I19<6,I19>=5),"I","")))),"") -> III | I19: =ROUND(IFERROR(AVERAGE(I12:J18),""),1) -> 8 | K19: =IFERROR(IF(AND(L19<=10,L19>=9.5),"IV",IF(AND(L19<9.5,L19>=7.5),"III",IF(AND(L19<7.5,L19>=6),"II",IF(AND(L19<6,L19>=5),"I","")))),"") -> III | L19: =ROUND(IFERROR(AVERAGE(L12:M18),""),1) -> 8.2 | N19: =IFERROR(IF(AND(O19<=10,O19>=9.5),"IV",IF(AND(O19<9.5,O19>=7.5),"III",IF(AND(O19<7.5,O19>=6),"II",IF(AND(O19<6,O19>=5),"I","")))),"") -> III | O19: =ROUND(IFERROR(AVERAGE(O12:P18),""),1) -> 8.2 | Q19: =IFERROR(IF(AND(R19<=10,R19>=9.5),"IV",IF(AND(R19<9.5,R19>=7.5),"III",IF(AND(R19<7.5,R19>=6),"II",IF(AND(R19<6,R19>=5),"I","")))),"") -> III | R19: =ROUND(IFERROR(AVERAGE(R12:S18),""),1) -> 8.4 | T19: =IFERROR(IF(AND(U19<=10,U19>=9.5),"IV",IF(AND(U19<9.5,U19>=7.5),"III",IF(AND(U19<7.5,U19>=6),"II",IF(AND(U19<6,U19>=5),"I","")))),"") -> III | U19: =ROUND(IFERROR(AVERAGE(U12:U18),""),1) -> 8.2 | AA19: Gral. | AB19: =total(AB12,AB13,AB14,AB15,AB16,AB17,AB18) -> III | AE19: =total(AE12,AE13,AE14,AE15,AE16,AE17,AE18) -> IV | AH19: =total(AH12,AH13,AH14,AH15,AH16,AH17,AH18) -> IV | AK19: =total(AK12,AK13,AK14,AK15,AK16,AK17,AK18) -> IV | AR19: Gral. | AS19: =total(AS12,AS13,AS14,AS15,AS16,AS17,AS18) -> III | AV19: =total(AV12,AV13,AV14,AV15,AV16,AV17,AV18) -> III | AY19: =total(AY12,AY13,AY14,AY15,AY16,AY17,AY18) -> IV
A21: Campos de Formación Académica en situacion de riesgo de no acreditar | W21: Alumnos con uno o mas Campos en riesgo de no acreditar | AA21: Áreas de Desarrollo Personal y Social en situacion de riesgo de no acreditar | AN21: Alumnos con una o mas Áreas en riesgo de no acreditar | AR21: Clubes de Autonomía Curricular en situacion de riesgo de no acreditar | BB21: Alumnos con uno o mas Clubes en riesgo de no acreditar
A22: Modalidad | B22: Español II | E22: Segunda Lengua Inglés II | H22: Matemáticas II | K22: Ciencias II (Enfásis en Física) | N22: Historia I | Q22: Formación Cívica y Ética I | T22: Total | AA22: Modalidad | AB22: Artes | AE22: Tutoría y Desarrollo Socioemocional | AH22: Educación Física | AK22: Total | AR22: Modalidad | AS22: Club 1 Necesidad | AV22: Club 2 Interés | AY22: Total
B23: 5 | C23: 6 | D23: T | E23: 5 | F23: 6 | G23: T | H23: 5 | I23: 6 | J23: T | K23: 5 | L23: 6 | M23: T | N23: 5 | O23: 6 | P23: T | Q23: 5 | R23: 6 | S23: T | T23: 5 | U23: 6 | W23: 5 | X23: 6 | Y23: T | AB23: ND I | AC23: ND II | AD23: T | AE23: ND I | AF23: ND II | AG23: T | AH23: ND I | AI23: ND II | AJ23: T | AK23: ND I | AL23: ND II | AN23: ND I | AO23: ND II | AP23: T | AS23: ND I | AT23: ND II | AU23: T | AV23: ND I | AW23: ND II | AX23: T | AY23: ND I | AZ23: ND II | BB23: ND I | BC23: ND II | BD23: T
A24: Grales. | B24: 261 | C24: 660 | D24: =IF(SUM(B24,C24)=0,"",SUM(B24,C24)) -> 921 | E24: 240 | F24: 612 | G24: =IF(SUM(E24,F24)=0,"",SUM(E24,F24)) -> 852 | H24: 326 | I24: 805 | J24: =IF(SUM(H24,I24)=0,"",SUM(H24,I24)) -> 1131 | K24: 264 | L24: 647 | M24: =IF(SUM(K24,L24)=0,"",SUM(K24,L24)) -> 911 | N24: 211 | O24: 449 | P24: =IF(SUM(N24,O24)=0,"",SUM(N24,O24)) -> 660 | Q24: 209 | R24: 500 | S24: =IF(SUM(Q24,R24)=0,"",SUM(Q24,R24)) -> 709 | T24: =IF(SUM(B24,E24,H24,K24,N24,Q24)=0,"",SUM(B24,E24,H24,K24,N24,Q24)) -> 1511 | U24: =IF(SUM(C24,F24,I24,L24,O24,R24)=0,"",SUM(C24,F24,I24,L24,O24,R24)) -> 3673 | W24: 815 | X24: 1689 | Y24: =IF(SUM(W24,X24)=0,"",SUM(W24,X24)) -> 2504 | AA24: Grales. | AB24: 146 | AC24: 742 | AD24: =IF(SUM(AB24:AC24)=0,"",SUM(AB24:AC24)) -> 888 | AE24: 75 | AF24: 495 | AG24: =IF(SUM(AE24:AF24)=0,"",SUM(AE24:AF24)) -> 570 | AH24: 43 | AI24: 386 | AJ24: =IF(SUM(AH24:AI24)=0,"",SUM(AH24:AI24)) -> 429 | AK24: =IF(SUM(AB24,AE24,AH24)=0,"",SUM(AB24,AE24,AH24)) -> 264 | AL24: =IF(SUM(AC24,AF24,AI24)=0,"",SUM(AC24,AF24,AI24)) -> 1623 | AN24: 209 | AO24: 2017 | AP24: =IF(SUM(AN24,AO24)=0,"",SUM(AN24,AO24)) -> 2226 | AR24: Grales. | AS24: 122 | AT24: 545 | AU24: =IF(SUM(AS24:AT24)=0,"",SUM(AS24:AT24)) -> 667 | AV24: 108 | AW24: 525 | AX24: =IF(SUM(AV24:AW24)=0,"",SUM(AV24:AW24)) -> 633 | AY24: =IF(SUM(AS24,AV24)=0,"",SUM(AS24,AV24)) -> 230 | AZ24: =IF(SUM(AT24,AW24)=0,"",SUM(AT24,AW24)) -> 1070 | BB24: 192 | BC24: 889 | BD24: =IF(SUM(BB24,BC24)=0,"",SUM(BB24,BC24)) -> 1081
A25: Técs. | B25: 296 | C25: 501 | D25: =IF(SUM(B25,C25)=0,"",SUM(B25,C25)) -> 797 | E25: 333 | F25: 601 | G25: =IF(SUM(E25,F25)=0,"",SUM(E25,F25)) -> 934 | H25: 271 | I25: 518 | J25: =IF(SUM(H25,I25)=0,"",SUM(H25,I25)) -> 789 | K25: 416 | L25: 467 | M25: =IF(SUM(K25,L25)=0,"",SUM(K25,L25)) -> 883 | N25: 307 | O25: 470 | P25: =IF(SUM(N25,O25)=0,"",SUM(N25,O25)) -> 777 | Q25: 288 | R25: 504 | S25: =IF(SUM(Q25,R25)=0,"",SUM(Q25,R25)) -> 792 | T25: =IF(SUM(B25,E25,H25,K25,N25,Q25)=0,"",SUM(B25,E25,H25,K25,N25,Q25)) -> 1911 | U25: =IF(SUM(C25,F25,I25,L25,O25,R25)=0,"",SUM(C25,F25,I25,L25,O25,R25)) -> 3061 | W25: 1263 | X25: 1823 | Y25: =IF(SUM(W25,X25)=0,"",SUM(W25,X25)) -> 3086 | AA25: Técs. | AB25: 160 | AC25: 698 | AD25: =IF(SUM(AB25:AC25)=0,"",SUM(AB25:AC25)) -> 858 | AE25: 75 | AF25: 499 | AG25: =IF(SUM(AE25:AF25)=0,"",SUM(AE25:AF25)) -> 574 | AH25: 14 | AI25: 208 | AJ25: 222 | AK25: =IF(SUM(AB25,AE25,AH25)=0,"",SUM(AB25,AE25,AH25)) -> 249 | AL25: 1405 | AN25: 175 | AO25: 708 | AP25: =IF(SUM(AN25,AO25)=0,"",SUM(AN25,AO25)) -> 883 | AR25: Técs. | AS25: 123 | AT25: 435 | AU25: =IF(SUM(AS25:AT25)=0,"",SUM(AS25:AT25)) -> 558 | AV25: 110 | AW25: 412 | AX25: =IF(SUM(AV25:AW25)=0,"",SUM(AV25:AW25)) -> 522 | AY25: =IF(SUM(AS25,AV25)=0,"",SUM(AS25,AV25)) -> 233 | AZ25: =IF(SUM(AT25,AW25)=0,"",SUM(AT25,AW25)) -> 847 | BB25: 176 | BC25: 667 | BD25: =IF(SUM(BB25,BC25)=0,"",SUM(BB25,BC25)) -> 843
A26: Telesec. | B26: 46 | C26: 122 | D26: 168 | E26: 96 | F26: 149 | G26: 245 | H26: 57 | I26: 173 | J26: 230 | K26: 69 | L26: 163 | M26: 232 | N26: 78 | O26: 153 | P26: 231 | Q26: 34 | R26: 100 | S26: 134 | T26: 380 | U26: 860 | W26: 186 | X26: 384 | Y26: 570 | AA26: Telesec. | AB26: 14 | AC26: 140 | AD26: 154 | AE26: 11 | AF26: 145 | AG26: 156 | AH26: 5 | AI26: 55 | AJ26: 60 | AK26: 30 | AL26: 340 | AN26: 24 | AO26: 220 | AP26: 244 | AR26: Telesec. | AS26: 19 | AT26: 150 | AU26: 169 | AV26: 14 | AW26: 115 | AX26: 129 | AY26: 33 | AZ26: 265 | BB26: 12 | BC26: 191 | BD26: 203
A31: Total | B31: =IF(SUM(B24:B30)=0,"",SUM(B24:B30)) -> 603 | C31: =IF(SUM(C24:C30)=0,"",SUM(C24:C30)) -> 1283 | D31: 1886 | E31: 669 | F31: 1362 | G31: 2031 | H31: 654 | I31: 1496 | J31: 2150 | K31: 749 | L31: 1277 | M31: 2026 | N31: 596 | O31: 1072 | P31: 1668 | Q31: 531 | R31: 1104 | S31: 1635 | T31: =IF(SUM(T24:T30)=0,"",SUM(T24:T30)) -> 3802 | U31: =IF(SUM(U24:V30)=0,"",SUM(U24:V30)) -> 7594 | W31: =IF(SUM(W24:W30)=0,"",SUM(W24:W30)) -> 2264 | X31: =IF(SUM(X24:X30)=0,"",SUM(X24:X30)) -> 3896 | Y31: =IF(SUM(Y24:Y30)=0,"",SUM(Y24:Y30)) -> 6160 | AA31: Total | AB31: =IF(SUM(AB24:AB30)=0,"",SUM(AB24:AB30)) -> 320 | AC31: 1580 | AD31: 1900 | AE31: 161 | AF31: 1139 | AG31: 1300 | AH31: 62 | AI31: 649 | AJ31: 711 | AK31: 543 | AL31: 3368 | AN31: =IF(SUM(AN24:AN30)=0,"",SUM(AN24:AN30)) -> 408 | AO31: =IF(SUM(AO24:AO30)=0,"",SUM(AO24:AO30)) -> 2945 | AP31: =IF(SUM(AP24:AP30)=0,"",SUM(AP24:AP30)) -> 3353 | AR31: Total | AS31: =IF(SUM(AS24:AS30)=0,"",SUM(AS24:AS30)) -> 264 | AT31: 1130 | AU31: 1394 | AV31: 232 | AW31: 1052 | AX31: 1284 | AY31: 496 | AZ31: 2182 | BB31: =IF(SUM(BB24:BB30)=0,"",SUM(BB24:BB30)) -> 380 | BC31: =IF(SUM(BC24:BC30)=0,"",SUM(BC24:BC30)) -> 1747 | BD31: =IF(SUM(BD24:BD30)=0,"",SUM(BD24:BD30)) -> 2127
A33: Nota: Para las columnas "Alumnos con uno o mas Campos, Áreas, Clubes en riesgo de no acreditar" se registrará el total de ALUMNOS en esta situación, se deberá anotar una sola vez, no importando la cantidad de Campos reprobados o con seis, ni las Áreas o Clubes con Niveles de Desempeño I y II.
A37: SECRETARÍA DE EDUCACIÓN PÚBLICA DEL ESTADO DE BAJA CALIFORNIA SUR
A38: DIRECCIÓN DE EDUCACIÓN SECUNDARIA
A39: CICLO ESCOLAR 2018 - 2019
A41: APROVECHAMIENTO, BAJO APROVECHAMIENTO Y REPROBACIÓN
A43: DIRECCIÓN: EDUCACIÓN SECUNDARIA DIRECTOR: PROFR. RUMUALDO RAMÍREZ GUTIERRÉZ PERIODO DE EVALUACIÓN: PRIMERO
A45: Promedio de Aprovechamiento de los Campos de Formación Académica | AA45: Promedio de Aprovechamiento de las Áreas de Desarrollo Personal y Social | AR45: Promedio de Aprovechamiento de los Clubes de Autonomía Curricular
A46: Modalidad | B46: Español III | E46: Segunda Lengua Inglés III | H46: Matemáticas III | K46: Ciencias III (Enfásis en Química) | N46: Historia II | Q46: Formación Cívica y Ética II | T46: Prom. Final | AA46: Modalidad | AB46: Artes | AE46: Tutoría y Desarrollo Socioemocional | AH46: Educación Física | AK46: Prom. Final | AR46: Modalidad | AS46: Club 1 Necesidad | AV46: Club 2 Interés | AY46: Prom. Final
B47: ND | C47: CALIF | E47: ND | F47: CALIF | H47: ND | I47: CALIF | K47: ND | L47: CALIF | N47: ND | O47: CALIF | Q47: ND | R47: CALIF | T47: ND | U47: CALIF | AB47: ND | AE47: ND | AH47: ND | AK47: ND | AS47: ND | AV47: ND | AY47: ND
A48: Grales. | B48: =IFERROR(IF(AND(C48<=10,C48>=9.5),"IV",IF(AND(C48<9.5,C48>=7.5),"III",IF(AND(C48<7.5,C48>=6),"II",IF(AND(C48<6,C48>=5),"I","")))),"") -> III | C48: 8.4 | E48: =IFERROR(IF(AND(F48<=10,F48>=9.5),"IV",IF(AND(F48<9.5,F48>=7.5),"III",IF(AND(F48<7.5,F48>=6),"II",IF(AND(F48<6,F48>=5),"I","")))),"") -> III | F48: 8.4 | H48: =IFERROR(IF(AND(I48<=10,I48>=9.5),"IV",IF(AND(I48<9.5,I48>=7.5),"III",IF(AND(I48<7.5,I48>=6),"II",IF(AND(I48<6,I48>=5),"I","")))),"") -> III | I48: 8.1 | K48: =IFERROR(IF(AND(L48<=10,L48>=9.5),"IV",IF(AND(L48<9.5,L48>=7.5),"III",IF(AND(L48<7.5,L48>=6),"II",IF(AND(L48<6,L48>=5),"I","")))),"") -> III | L48: 8.3 | N48: =IFERROR(IF(AND(O48<=10,O48>=9.5),"IV",IF(AND(O48<9.5,O48>=7.5),"III",IF(AND(O48<7.5,O48>=6),"II",IF(AND(O48<6,O48>=5),"I","")))),"") -> III | O48: 8.6 | Q48: =IFERROR(IF(AND(R48<=10,R48>=9.5),"IV",IF(AND(R48<9.5,R48>=7.5),"III",IF(AND(R48<7.5,R48>=6),"II",IF(AND(R48<6,R48>=5),"I","")))),"") -> III | R48: 8.6 | T48: =IFERROR(IF(AND(U48<=10,U48>=9.5),"IV",IF(AND(U48<9.5,U48>=7.5),"III",IF(AND(U48<7.5,U48>=6),"II",IF(AND(U48<6,U48>=5),"I","")))),"") -> III | U48: =ROUND(IFERROR(AVERAGE(C48,F48,I48,L48,O48,R48),""),1) -> 8.4 | AA48: Grales. | AB48: III | AE48: III | AH48: IV | AK48: =Nivel(AB48,AE48,AH48) -> III | AR48: Grales. | AS48: III | AV48: III | AY48: =Nivel_2(AS48,AV48) -> III
A49: Técs. | B49: III | C49: 8.3 | E49: III | F49: 8.1 | H49: III | I49: 7.89 | K49: III | L49: 8.1 | N49: III | O49: 8.4 | Q49: III | R49: 8.4 | T49: III | U49: =ROUND(IFERROR(AVERAGE(C49,F49,I49,L49,O49,R49),""),1) -> 8.2 | AA49: Técs. | AB49: III | AE49: III | AH49: IV | AK49: =Nivel(AB49,AE49,AH49) -> III | AR49: Técs. | AS49: IV | AV49: IV | AY49: =Nivel_2(AS49,AV49) -> IV
A50: Telesec. | B50: III | C50: 8.1 | E50: III | F50: 8.1 | H50: III | I50: 8 | K50: III | L50: 8.1 | N50: III | O50: 8 | Q50: III | R50: 8.4 | T50: III | U50: =ROUND(IFERROR(AVERAGE(C50,F50,I50,L50,O50,R50),""),1) -> 8.1 | AA50: Telesec. | AB50: III | AE50: III | AH50: IV | AK50: III | AR50: Telesec. | AS50: III | AV50: III | AY50: III
U51: =IFERROR(AVERAGE(C51,F51,I51,L51,O51,R51),"") -> 
A55: Gral. | B55: =IFERROR(IF(AND(C55<=10,C55>=9.5),"IV",IF(AND(C55<9.5,C55>=7.5),"III",IF(AND(C55<7.5,C55>=6),"II",IF(AND(C55<6,C55>=5),"I","")))),"") -> III | C55: =ROUND(IFERROR(AVERAGE(C48:D54),""),1) -> 8.3 | E55: =IFERROR(IF(AND(F55<=10,F55>=9.5),"IV",IF(AND(F55<9.5,F55>=7.5),"III",IF(AND(F55<7.5,F55>=6),"II",IF(AND(F55<6,F55>=5),"I","")))),"") -> III | F55: =ROUND(IFERROR(AVERAGE(F48:G54),""),1) -> 8.2 | H55: =IFERROR(IF(AND(I55<=10,I55>=9.5),"IV",IF(AND(I55<9.5,I55>=7.5),"III",IF(AND(I55<7.5,I55>=6),"II",IF(AND(I55<6,I55>=5),"I","")))),"") -> III | I55: =ROUND(IFERROR(AVERAGE(I48:J54),""),1) -> 8 | K55: =IFERROR(IF(AND(L55<=10,L55>=9.5),"IV",IF(AND(L55<9.5,L55>=7.5),"III",IF(AND(L55<7.5,L55>=6),"II",IF(AND(L55<6,L55>=5),"I","")))),"") -> III | L55: =ROUND(IFERROR(AVERAGE(L48:M54),""),1) -> 8.2 | N55: =IFERROR(IF(AND(O55<=10,O55>=9.5),"IV",IF(AND(O55<9.5,O55>=7.5),"III",IF(AND(O55<7.5,O55>=6),"II",IF(AND(O55<6,O55>=5),"I","")))),"") -> III | O55: =ROUND(IFERROR(AVERAGE(O48:P54),""),1) -> 8.3 | Q55: =IFERROR(IF(AND(R55<=10,R55>=9.5),"IV",IF(AND(R55<9.5,R55>=7.5),"III",IF(AND(R55<7.5,R55>=6),"II",IF(AND(R55<6,R55>=5),"I","")))),"") -> III | R55: =ROUND(IFERROR(AVERAGE(R48:S54),""),1) -> 8.5 | T55: =IFERROR(IF(AND(U55<=10,U55>=9.5),"IV",IF(AND(U55<9.5,U55>=7.5),"III",IF(AND(U55<7.5,U55>=6),"II",IF(AND(U55<6,U55>=5),"I","")))),"") -> III | U55: =ROUND(IFERROR(AVERAGE(U48:U54),""),1) -> 8.2 | AA55: Gral. | AB55: =total(AB48,AB49,AB50,AB51,AB52,AB53,AB54) -> III | AE55: =total(AE48,AE49,AE50,AE51,AE52,AE53,AE54) -> III | AH55: =total(AH48,AH49,AH50,AH51,AH52,AH53,AH54) -> IV | AK55: =total(AK48,AK49,AK50,AK51,AK52,AK53,AK54) -> III | AR55: Gral. | AS55: =total(AS48,AS49,AS50,AS51,AS52,AS53,AS54) -> III | AV55: =total(AV48,AV49,AV50,AV51,AV52,AV53,AV54) -> III | AY55: =total(AY48,AY49,AY50,AY51,AY52,AY53,AY54) -> III
A57: Campos de Formación Académica en situacion de riesgo de no acreditar | W57: Alumnos con uno o mas Campos en riesgo de no acreditar | AA57: Áreas de Desarrollo Personal y Social en situacion de riesgo de no acreditar | AN57: Alumnos con una o mas Áreas en riesgo de no acreditar | AR57: Clubes de Autonomía Curricular en situacion de riesgo de no acreditar | BB57: Alumnos con uno o mas Clubes en riesgo de no acreditar
A58: Modalidad | B58: Español III | E58: Segunda Lengua Inglés III | H58: Matemáticas III | K58: Ciencias III (Enfásis en Química) | N58: Historia II | Q58: Formación Cívica y Ética II | T58: Total | AA58: Modalidad | AB58: Artes | AE58: Tutoría y Desarrollo Socioemocional | AH58: Educación Física | AK58: Total | AR58: Modalidad | AS58: Club 1 Necesidad | AV58: Club 2 Interés | AY58: Total
B59: 5 | C59: 6 | D59: T | E59: 5 | F59: 6 | G59: T | H59: 5 | I59: 6 | J59: T | K59: 5 | L59: 6 | M59: T | N59: 5 | O59: 6 | P59: T | Q59: 5 | R59: 6 | S59: T | T59: 5 | U59: 6 | W59: 5 | X59: 6 | Y59: T | AB59: ND I | AC59: ND II | AD59: T | AE59: ND I | AF59: ND II | AG59: T | AH59: ND I | AI59: ND II | AJ59: T | AK59: ND I | AL59: ND II | AN59: ND I | AO59: ND II | AP59: T | AS59: ND I | AT59: ND II | AU59: T | AV59: ND I | AW59: ND II | AX59: T | AY59: ND I | AZ59: ND II | BB59: ND I | BC59: ND II | BD59: T
A60: Grales. | B60: 227 | C60: 612 | D60: =IF(SUM(B60,C60)=0,"",SUM(B60,C60)) -> 839 | E60: 202 | F60: 681 | G60: =IF(SUM(E60,F60)=0,"",SUM(E60,F60)) -> 883 | H60: 279 | I60: 739 | J60: =IF(SUM(H60,I60)=0,"",SUM(H60,I60)) -> 1018 | K60: 303 | L60: 575 | M60: =IF(SUM(K60,L60)=0,"",SUM(K60,L60)) -> 878 | N60: 234 | O60: 444 | P60: =IF(SUM(N60,O60)=0,"",SUM(N60,O60)) -> 678 | Q60: 188 | R60: 479 | S60: =IF(SUM(Q60,R60)=0,"",SUM(Q60,R60)) -> 667 | T60: =IF(SUM(B60,E60,H60,K60,N60,Q60)=0,"",SUM(B60,E60,H60,K60,N60,Q60)) -> 1433 | U60: =IF(SUM(C60,F60,I60,L60,O60,R60)=0,"",SUM(C60,F60,I60,L60,O60,R60)) -> 3530 | W60: 882 | X60: 1713 | Y60: =IF(SUM(W60,X60)=0,"",SUM(W60,X60)) -> 2595 | AA60: Grales. | AB60: 149 | AC60: 688 | AD60: =IF(SUM(AB60:AC60)=0,"",SUM(AB60:AC60)) -> 837 | AE60: 116 | AF60: 470 | AG60: =IF(SUM(AE60:AF60)=0,"",SUM(AE60:AF60)) -> 586 | AH60: 39 | AI60: 238 | AJ60: =IF(SUM(AH60:AI60)=0,"",SUM(AH60:AI60)) -> 277 | AK60: =IF(SUM(AB60,AE60,AH60)=0,"",SUM(AB60,AE60,AH60)) -> 304 | AL60: =IF(SUM(AC60,AF60,AI60)=0,"",SUM(AC60,AF60,AI60)) -> 1396 | AN60: 280 | AO60: 984 | AP60: =IF(SUM(AN60,AO60)=0,"",SUM(AN60,AO60)) -> 1264 | AR60: Grales. | AS60: 104 | AT60: 462 | AU60: =IF(SUM(AS60:AT60)=0,"",SUM(AS60:AT60)) -> 566 | AV60: 129 | AW60: 489 | AX60: =IF(SUM(AV60:AW60)=0,"",SUM(AV60:AW60)) -> 618 | AY60: =IF(SUM(AS60,AV60)=0,"",SUM(AS60,AV60)) -> 233 | AZ60: =IF(SUM(AT60,AW60)=0,"",SUM(AT60,AW60)) -> 951 | BB60: 207 | BC60: 763 | BD60: =IF(SUM(BB60,BC60)=0,"",SUM(BB60,BC60)) -> 970
A61: Técs. | B61: 192 | C61: 460 | D61: =IF(SUM(B61,C61)=0,"",SUM(B61,C61)) -> 652 | E61: 300 | F61: 451 | G61: =IF(SUM(E61,F61)=0,"",SUM(E61,F61)) -> 751 | H61: 290 | I61: 604 | J61: =IF(SUM(H61,I61)=0,"",SUM(H61,I61)) -> 894 | K61: 281 | L61: 449 | M61: =IF(SUM(K61,L61)=0,"",SUM(K61,L61)) -> 730 | N61: 237 | O61: 370 | P61: =IF(SUM(N61,O61)=0,"",SUM(N61,O61)) -> 607 | Q61: 387 | R61: 665 | S61: =IF(SUM(Q61,R61)=0,"",SUM(Q61,R61)) -> 1052 | T61: =IF(SUM(B61,E61,H61,K61,N61,Q61)=0,"",SUM(B61,E61,H61,K61,N61,Q61)) -> 1687 | U61: =IF(SUM(C61,F61,I61,L61,O61,R61)=0,"",SUM(C61,F61,I61,L61,O61,R61)) -> 2999 | W61: 905 | X61: 1450 | Y61: =IF(SUM(W61,X61)=0,"",SUM(W61,X61)) -> 2355 | AA61: Técs. | AB61: 148 | AC61: 628 | AD61: =IF(SUM(AB61:AC61)=0,"",SUM(AB61:AC61)) -> 776 | AE61: 49 | AF61: 335 | AG61: =IF(SUM(AE61:AF61)=0,"",SUM(AE61:AF61)) -> 384 | AH61: 44 | AI61: 193 | AJ61: 237 | AK61: =IF(SUM(AB61,AE61,AH61)=0,"",SUM(AB61,AE61,AH61)) -> 241 | AL61: =IF(SUM(AC61,AF61,AI61)=0,"",SUM(AC61,AF61,AI61)) -> 1156 | AN61: 174 | AO61: 647 | AP61: =IF(SUM(AN61,AO61)=0,"",SUM(AN61,AO61)) -> 821 | AR61: Técs. | AS61: 74 | AT61: 326 | AU61: =IF(SUM(AS61:AT61)=0,"",SUM(AS61:AT61)) -> 400 | AV61: 46 | AW61: 297 | AX61: =IF(SUM(AV61:AW61)=0,"",SUM(AV61:AW61)) -> 343 | AY61: =IF(SUM(AS61,AV61)=0,"",SUM(AS61,AV61)) -> 120 | AZ61: =IF(SUM(AT61,AW61)=0,"",SUM(AT61,AW61)) -> 623 | BB61: 107 | BC61: 483 | BD61: =IF(SUM(BB61,BC61)=0,"",SUM(BB61,BC61)) -> 590
A62: Telesec. | B62: 58 | C62: 187 | D62: 245 | E62: 92 | F62: 140 | G62: 232 | H62: 99 | I62: 167 | J62: 266 | K62: 92 | L62: 133 | M62: 225 | N62: 81 | O62: 165 | P62: 246 | Q62: 62 | R62: 89 | S62: 151 | T62: 484 | U62: 881 | W62: 206 | X62: 357 | Y62: 563 | AA62: Telesec. | AB62: 45 | AC62: 150 | AD62: 195 | AE62: 24 | AF62: 127 | AG62: 151 | AH62: 12 | AI62: 89 | AJ62: 101 | AK62: 81 | AL62: 366 | AN62: 35 | AO62: 241 | AP62: 276 | AR62: Telesec. | AS62: 18 | AT62: 198 | AU62: 216 | AV62: 20 | AW62: 118 | AX62: 138 | AY62: 38 | AZ62: 316 | BB62: 20 | BC62: 238 | BD62: 258
A67: Total | B67: =IF(SUM(B60:B66)=0,"",SUM(B60:B66)) -> 477 | C67: =IF(SUM(C60:C66)=0,"",SUM(C60:C66)) -> 1259 | D67: 1736 | E67: 594 | F67: 1272 | G67: 1866 | H67: 668 | I67: 1510 | J67: 2178 | K67: 676 | L67: 1157 | M67: 1833 | N67: 552 | O67: 979 | P67: 1531 | Q67: 637 | R67: 1233 | S67: 1870 | T67: =IF(SUM(T60:T66)=0,"",SUM(T60:T66)) -> 3604 | U67: =IF(SUM(U60:V66)=0,"",SUM(U60:V66)) -> 7410 | W67: =IF(SUM(W60:W66)=0,"",SUM(W60:W66)) -> 1993 | X67: =IF(SUM(X60:X66)=0,"",SUM(X60:X66)) -> 3520 | Y67: =IF(SUM(Y60:Y66)=0,"",SUM(Y60:Y66)) -> 5513 | AA67: Total | AB67: =IF(SUM(AB60:AB66)=0,"",SUM(AB60:AB66)) -> 342 | AC67: 1466 | AD67: 1808 | AE67: 189 | AF67: 932 | AG67: 1121 | AH67: 95 | AI67: 520 | AJ67: 615 | AK67: 626 | AL67: 2918 | AN67: =IF(SUM(AN60:AN66)=0,"",SUM(AN60:AN66)) -> 489 | AO67: =IF(SUM(AO60:AO66)=0,"",SUM(AO60:AO66)) -> 1872 | AP67: =IF(SUM(AP60:AP66)=0,"",SUM(AP60:AP66)) -> 2361 | AR67: Total | AS67: =IF(SUM(AS60:AS66)=0,"",SUM(AS60:AS66)) -> 196 | AT67: 986 | AU67: 1182 | AV67: 195 | AW67: 904 | AX67: 1099 | AY67: 391 | AZ67: 1890 | BB67: =IF(SUM(BB60:BB66)=0,"",SUM(BB60:BB66)) -> 334 | BC67: =IF(SUM(BC60:BC66)=0,"",SUM(BC60:BC66)) -> 1484 | BD67: =IF(SUM(BD60:BD66)=0,"",SUM(BD60:BD66)) -> 1818
A69: Nota: Para las columnas "Alumnos con uno o mas Campos, Áreas, Clubes en riesgo de no acreditar" se registrará el total de ALUMNOS en esta situación, se deberá anotar una sola vez, no importando la cantidad de Campos reprobados o con seis, ni las Áreas o Clubes con Niveles de Desempeño I y II.

Sheet Gráfica APROV 2 Y 3
B2: Español II | C2: Segunda Lengua Inglés II | D2: Matemáticas II | E2: Ciencias II (Enfásis en Física) | F2: Historia I | G2: Formación Cívica y Ética I | K2: Español III | L2: Segunda Lengua Inglés III | M2: Matemáticas III | N2: Ciencias III (Enfásis en Química) | O2: Historia II | P2: Formación Cívica y Ética II
B4: GRAFICAS PARA DESARROLLO PERSONAL | K4: GRAFICAS PARA DESARROLLO PERSONAL
B6: Artes | C6: Tutoría y Desarrollo Socioemocional | D6: Educación Física | K6: Artes | L6: Tutoría y Desarrollo Socioemocional | M6: Educación Física
B7: =Graficas(+'APROV 2 y 3'!AB19) -> 3 | C7: =Graficas(+'APROV 2 y 3'!AE19) -> 4 | D7: =Graficas(+'APROV 2 y 3'!AH19) -> 4 | K7: =Graficas(+'APROV 2 y 3'!AB55) -> 3 | L7: =Graficas(+'APROV 2 y 3'!AE55) -> 3 | M7: =Graficas(+'APROV 2 y 3'!AH55) -> 4
B9: GRAFICA PARA AUTONOMIA CURRICULAR | K9: GRAFICA PARA AUTONOMIA CURRICULAR
B11: Clubes de Necesidad | C11: Clubes de Interés | K11: Clubes de Necesidad | L11: Clubes de Interés
B12: =Graficas(+'APROV 2 y 3'!AS19) -> 3 | C12: =Graficas(+'APROV 2 y 3'!AV19) -> 3 | K12: =Graficas(+'APROV 2 y 3'!AS55) -> 3 | L12: =Graficas(+'APROV 2 y 3'!AV55) -> 3

Sheet Gráfica Promedios Finales
B10: PROMEDIO 1RO | C10: PROMEDIO 2DO | D10: PROMEDIO 3ERO
B11: =+'APROV 1'!X19 -> 8.3 | C11: =+'APROV 2 y 3'!U19 -> 8.2 | D11: =+'APROV 2 y 3'!U55 -> 8.2

Sheet MATRICULA
A1: SECRETARÍA DE EDUCACIÓN PÚBLICA DEL ESTADO DE BAJA CALIFORNIA SUR
A2: DIRECCIÓN DE EDUCACIÓN SECUNDARIA
A3: CICLO ESCOLAR 2018 - 2019
A5: MATRÍCULA
A7: DIRECCIÓN: EDUCACIÓN SECUNDARIA DIRECTOR: PROFR. RUMUALDO RAMÍREZ GUTIERRÉZ PERIODO DE EVALUACIÓN: PRIMERO
A10: Modalidad | B10: MATRÍCULA
B11: INSCRIPCIÓN INICIAL | N11: CAMBIOS DESDE OTRAS ESCUELAS (ALTAS)
B12: PRIMERO | E12: SEGUNDO | H12: TERCERO | K12: TOTAL | N12: PRIMERO | Q12: SEGUNDO | T12: TERCERO | W12: TOTAL
B13: H | C13: M | D13: T | E13: H | F13: M | G13: T | H13: H | I13: M | J13: T | K13: H | L13: M | M13: T | N13: H | O13: M | P13: T | Q13: H | R13: M | S13: T | T13: H | U13: M | V13: T | W13: H | X13: M | Y13: T
A14: Grales. | B14: 3404 | C14: 3158 | D14: =IF(SUM(B14,C14)=0,"",SUM(B14,C14)) -> 6562 | E14: 3267 | F14: 3142 | G14: =IF(SUM(E14,F14)=0,"",SUM(E14,F14)) -> 6409 | H14: 3133 | I14: 3097 | J14: =IF(SUM(H14,I14)=0,"",SUM(H14,I14)) -> 6230 | K14: =IF(SUM(B14,E14,H14)=0,"",SUM(B14,E14,H14)) -> 9804 | L14: =IF(SUM(C14,F14,I14)=0,"",SUM(SUM(C14,F14,I14))) -> 9397 | M14: =IF(SUM(K14,L14)=0,"",SUM(K14,L14)) -> 19201 | N14: 15 | O14: 18 | P14: =IF(SUM(N14,O14)=0,"",SUM(N14,O14)) -> 33 | Q14: 25 | R14: 13 | S14: =IF(SUM(Q14,R14)=0,"",SUM(Q14,R14)) -> 38 | T14: 19 | U14: 21 | V14: =IF(SUM(T14,U14)=0,"",SUM(T14,U14)) -> 40 | W14: =IF(SUM(N14,Q14,T14)=0,"",SUM(N14,Q14,T14)) -> 59 | X14: =IF(SUM(O14,R14,U14)=0,"",SUM(SUM(O14,R14,U14))) -> 52 | Y14: =IF(SUM(W14,X14)=0,"",SUM(W14,X14)) -> 111
A15: Técs. | B15: 2533 | C15: 2570 | D15: =IF(SUM(B15,C15)=0,"",SUM(B15,C15)) -> 5103 | E15: 2537 | F15: 2460 | G15: =IF(SUM(E15,F15)=0,"",SUM(E15,F15)) -> 4997 | H15: 2529 | I15: 2371 | J15: =IF(SUM(H15,I15)=0,"",SUM(H15,I15)) -> 4900 | K15: =IF(SUM(B15,E15,H15)=0,"",SUM(B15,E15,H15)) -> 7599 | L15: =IF(SUM(C15,F15,I15)=0,"",SUM(SUM(C15,F15,I15))) -> 7401 | M15: =IF(SUM(K15,L15)=0,"",SUM(K15,L15)) -> 15000 | N15: 21 | O15: 16 | P15: =IF(SUM(N15,O15)=0,"",SUM(N15,O15)) -> 37 | Q15: 18 | R15: 24 | S15: =IF(SUM(Q15,R15)=0,"",SUM(Q15,R15)) -> 42 | T15: 11 | U15: 22 | V15: =IF(SUM(T15,U15)=0,"",SUM(T15,U15)) -> 33 | W15: =IF(SUM(N15,Q15,T15)=0,"",SUM(N15,Q15,T15)) -> 50 | X15: =IF(SUM(O15,R15,U15)=0,"",SUM(SUM(O15,R15,U15))) -> 62 | Y15: =IF(SUM(W15,X15)=0,"",SUM(W15,X15)) -> 112
A16: Telesec. | B16: 796 | C16: 723 | D16: 1519 | E16: 706 | F16: 693 | G16: 1399 | H16: 741 | I16: 671 | J16: 1412 | K16: 2243 | L16: 2087 | M16: 4330 | N16: 14 | O16: 7 | P16: 21 | Q16: 7 | R16: 6 | S16: 13 | T16: 9 | U16: 7 | V16: 16 | W16: 30 | X16: 20 | Y16: 50
A23: TOTAL | B23: =SUM(B14:B22) -> 6733 | C23: 6451 | D23: 13184 | E23: 6510 | F23: 6295 | G23: 12805 | H23: 6403 | I23: 6139 | J23: 12542 | K23: 19646 | L23: 18885 | M23: 38531 | N23: 50 | O23: 41 | P23: 91 | Q23: 50 | R23: 43 | S23: 93 | T23: 39 | U23: 50 | V23: 89 | W23: 139 | X23: 134 | Y23: 273
A25: Modalidad | B25: BAJAS | Z25: EXISTENCIA
B26: DESERCIÓN | N26: CAMBIOS HACIA OTRAS ESCUELAS (TRASLADOS)
B27: PRIMERO | E27: SEGUNDO | H27: TERCERO | K27: TOTAL | N27: PRIMERO | Q27: SEGUNDO | T27: TERCERO | W27: TOTAL | Z27: PRIMERO | AC27: SEGUNDO | AF27: TERCERO | AI27: TOTAL
B28: H | C28: M | D28: T | E28: H | F28: M | G28: T | H28: H | I28: M | J28: T | K28: H | L28: M | M28: T | N28: H | O28: M | P28: T | Q28: H | R28: M | S28: T | T28: H | U28: M | V28: T | W28: H | X28: M | Y28: T | Z28: H | AA28: M | AB28: T | AC28: H | AD28: M | AE28: T | AF28: H | AG28: M | AH28: T | AI28: H | AJ28: M | AK28: T
A29: Grales. | B29: 2 | C29: 5 | D29: =IF(SUM(B29,C29)=0,"",SUM(B29,C29)) -> 7 | E29: 7 | F29: 3 | G29: =IF(SUM(E29,F29)=0,"",SUM(E29,F29)) -> 10 | H29: 7 | I29: 5 | J29: =IF(SUM(H29,I29)=0,"",SUM(H29,I29)) -> 12 | K29: =IF(SUM(B29,E29,H29)=0,"",SUM(B29,E29,H29)) -> 16 | L29: =IF(SUM(C29,F29,I29)=0,"",SUM(SUM(C29,F29,I29))) -> 13 | M29: =IF(SUM(K29,L29)=0,"",SUM(K29,L29)) -> 29 | N29: 40 | O29: 13 | P29: =IF(SUM(N29,O29)=0,"",SUM(N29,O29)) -> 53 | Q29: 26 | R29: 33 | S29: =IF(SUM(Q29,R29)=0,"",SUM(Q29,R29)) -> 59 | T29: 29 | U29: 23 | V29: =IF(SUM(T29,U29)=0,"",SUM(T29,U29)) -> 52 | W29: =IF(SUM(N29,Q29,T29)=0,"",SUM(N29,Q29,T29)) -> 95 | X29: =IF(SUM(O29,R29,U29)=0,"",SUM(SUM(O29,R29,U29))) -> 69 | Y29: =IF(SUM(W29,X29)=0,"",SUM(W29,X29)) -> 164 | Z29: 3377 | AA29: 3158 | AB29: =IF(SUM(Z29,AA29)=0,"",SUM(Z29,AA29)) -> 6535 | AC29: 3259 | AD29: 3119 | AE29: =IF(SUM(AC29,AD29)=0,"",SUM(AC29,AD29)) -> 6378 | AF29: 3116 | AG29: 3090 | AH29: =IF(SUM(AF29,AG29)=0,"",SUM(AF29,AG29)) -> 6206 | AI29: =IF(SUM(Z29,AC29,AF29)=0,"",SUM(Z29,AC29,AF29)) -> 9752 | AJ29: =IF(SUM(AA29,AD29,AG29)=0,"",SUM(SUM(AA29,AD29,AG29))) -> 9367 | AK29: =IF(SUM(AI29,AJ29)=0,"",SUM(AI29,AJ29)) -> 19119
A30: Técs. | B30: 6 | C30: 4 | D30: =IF(SUM(B30,C30)=0,"",SUM(B30,C30)) -> 10 | E30: 5 | F30: 5 | G30: =IF(SUM(E30,F30)=0,"",SUM(E30,F30)) -> 10 | H30: 2 | I30: 3 | J30: =IF(SUM(H30,I30)=0,"",SUM(H30,I30)) -> 5 | K30: =IF(SUM(B30,E30,H30)=0,"",SUM(B30,E30,H30)) -> 13 | L30: =IF(SUM(C30,F30,I30)=0,"",SUM(SUM(C30,F30,I30))) -> 12 | M30: =IF(SUM(K30,L30)=0,"",SUM(K30,L30)) -> 25 | N30: 36 | O30: 24 | P30: =IF(SUM(N30,O30)=0,"",SUM(N30,O30)) -> 60 | Q30: 24 | R30: 25 | S30: =IF(SUM(Q30,R30)=0,"",SUM(Q30,R30)) -> 49 | T30: 21 | U30: 19 | V30: =IF(SUM(T30,U30)=0,"",SUM(T30,U30)) -> 40 | W30: =IF(SUM(N30,Q30,T30)=0,"",SUM(N30,Q30,T30)) -> 81 | X30: =IF(SUM(O30,R30,U30)=0,"",SUM(SUM(O30,R30,U30))) -> 68 | Y30: =IF(SUM(W30,X30)=0,"",SUM(W30,X30)) -> 149 | Z30: 2512 | AA30: 2558 | AB30: =IF(SUM(Z30,AA30)=0,"",SUM(Z30,AA30)) -> 5070 | AC30: 2526 | AD30: 2454 | AE30: =IF(SUM(AC30,AD30)=0,"",SUM(AC30,AD30)) -> 4980 | AF30: 2517 | AG30: 2371 | AH30: =IF(SUM(AF30,AG30)=0,"",SUM(AF30,AG30)) -> 4888 | AI30: =IF(SUM(Z30,AC30,AF30)=0,"",SUM(Z30,AC30,AF30)) -> 7555 | AJ30: =IF(SUM(AA30,AD30,AG30)=0,"",SUM(SUM(AA30,AD30,AG30))) -> 7383 | AK30: =IF(SUM(AI30,AJ30)=0,"",SUM(AI30,AJ30)) -> 14938
A31: Telesec. | B31: 2 | C31: 2 | D31: 4 | E31: 2 | F31: 3 | G31: 5 | H31: 5 | I31: 0 | J31: 5 | K31: 9 | L31: 5 | M31: 14 | N31: 8 | O31: 6 | P31: 14 | Q31: 7 | R31: 8 | S31: 15 | T31: 6 | U31: 6 | V31: 12 | W31: 21 | X31: 20 | Y31: 41 | Z31: 800 | AA31: 722 | AB31: 1522 | AC31: 704 | AD31: 688 | AE31: 1392 | AF31: 739 | AG31: 672 | AH31: 1411 | AI31: 2243 | AJ31: 2082 | AK31: 4325
A38: TOTAL | B38: =SUM(B29:B37) -> 10 | C38: 11 | D38: 21 | E38: 14 | F38: 11 | G38: 25 | H38: 14 | I38: 8 | J38: 22 | K38: 38 | L38: 30 | M38: 68 | N38: 84 | O38: 43 | P38: 127 | Q38: 57 | R38: 66 | S38: 123 | T38: 56 | U38: 48 | V38: 104 | W38: 197 | X38: 157 | Y38: 354 | Z38: =SUM(B23,N23-B38-N38) -> 6689 | AA38: 6438 | AB38: =SUM(AB29:AB37) -> 13127 | AC38: =SUM(E23,Q23-E38-Q38) -> 6489 | AD38: 6261 | AE38: 12750 | AF38: =SUM(H23,T23-H38-T38) -> 6372 | AG38: 6133 | AH38: 12505 | AI38: 19550 | AJ38: 18832 | AK38: 38382

Sheet NORMALIDAD MÍNIMA
B1: SECRETARÍA DE EDUCACIÓN PÚBLICA DEL ESTADO DE BAJA CALIFORNIA SUR
B2: DIRECCIÓN DE EDUCACIÓN SECUNDARIA
B3: CICLO ESCOLAR 2018 - 2019
B4: CONCENTRADO NORMALIDAD MÍNIMA
C5: DIRECCIÓN: EDUCACIÓN SECUNDARIA DIRECTOR: PROFR. RUMUALDO RAMÍREZ GUTIERRÉZ PERIODO DE EVALUACIÓN: PRIMERO
B6: Modalidad | C6: DIRECTIVOS | F6: COORDINADORES | I6: R | J6: INASISTENCIAS | M6: LICENCIAS ECONÓMICAS | O6: LICENCIAS MÉDICAS | Q6: TOTAL DE DÍAS NO LABORADOS
C7: H | D7: M | E7: T | F7: H | G7: M | H7: T | J7: I | K7: P.D. | L7: D.N.L.I y P.D. | M7: L.E. | N7: D.N.L.E. | O7: L.M. | P7: D.N.L.M. | Q7: DNLI y PD, DNLE, DNLM
B8: Grales. | C8: 61 | D8: 64 | E8: =IF(SUM(C8,D8)=0,"",SUM(C8,D8)) -> 125 | F8: 33 | G8: 33 | H8: =IF(SUM(F8,G8)=0,"",SUM(F8,G8)) -> 66 | I8: 4 | J8: 38 | K8: 29 | L8: =IF(SUM(J8,K8)=0,"",SUM(J8,K8)) -> 67 | M8: 66 | N8: 373 | O8: 36 | P8: 211 | Q8: =IF(SUM(L8,N8,P8)=0,"0",SUM(L8,N8,P8)) -> 651
B9: Técs. | C9: 36 | D9: 23 | E9: =IF(SUM(C9,D9)=0,"",SUM(C9,D9)) -> 59 | F9: 41 | G9: 25 | H9: =IF(SUM(F9,G9)=0,"",SUM(F9,G9)) -> 66 | I9: 7 | J9: 8 | K9: 12 | L9: 20 | M9: 34 | N9: 105 | O9: 16 | P9: 71 | Q9: =IF(SUM(L9,N9,P9)=0,"0",SUM(L9,N9,P9)) -> 196
B10: Telesec. | C10: 24 | D10: 9 | E10: =IF(SUM(C10,D10)=0,"",SUM(C10,D10)) -> 33 | F10: 148 | G10: 106 | H10: 254 | I10: 0 | J10: 0 | K10: 0 | L10: 0 | M10: 0 | N10: 0 | O10: 0 | P10: 0 | Q10: 0
B11: Total | C11: =SUM(C8:C10) -> 121 | D11: 96 | E11: 217 | F11: 222 | G11: 164 | H11: 386 | I11: 11 | J11: 46 | K11: 41 | L11: 87 | M11: 100 | N11: 478 | O11: 52 | P11: 282 | Q11: 847
B13: Modalidad | C13: PERSONAL POR HORAS | F13: DOCENTES | I13: R | J13: INASISTENCIAS | M13: LICENCIAS ECONÓMICAS | O13: LICENCIAS MÉDICAS | Q13: TOTAL DE HORAS NO LABORADOS
F14: H | G14: M | H14: T | J14: I | K14: P.D. | L14: H.N.L.I y P.D. | M14: L.E. | N14: H.N.L.E. | O14: L.M. | P14: H.N.L.M. | Q14: HNLI y PD, HNLE, HNLM
B15: Grales. | F15: 642 | G15: 707 | H15: =IF(SUM(F15,G15)=0,"",SUM(F15,G15)) -> 1349 | I15: 492 | J15: 1415 | K15: 376 | L15: =IF(SUM(J15,K15)=0,"",SUM(J15,K15)) -> 1791 | M15: 594 | N15: 5432 | O15: 475 | P15: 6580 | Q15: =IF(SUM(L15,N15,P15)=0,"0",SUM(L15,N15,P15)) -> 13803
B16: Técs. | F16: 311 | G16: 371 | H16: 682 | I16: 222 | J16: 286 | K16: 173 | L16: 459 | M16: 388 | N16: 3302 | O16: 227 | P16: 4266 | Q16: 8027
B17: Telesec. | F17: 148 | G17: 106 | H17: 254 | I17: 0 | J17: 1 | K17: 0 | L17: 1 | M17: 60 | N17: 180 | O17: 20 | P17: 218 | Q17: 399
B18: Total | F18: =SUM(F15:F17) -> 1101 | G18: 1184 | H18: 2285 | I18: 714 | J18: 1702 | K18: 549 | L18: 2251 | M18: 1042 | N18: 8914 | O18: 722 | P18: 11064 | Q18: 22229
B21: Modalidad | D21: ASISTENCIA EDUCATIVA | G21: ADMINISTRATIVO Y DE APOYO | J21: R | K21: INASISTENCIAS | N21: LICENCIAS ECONÓMICAS | P21: LICENCIAS MÉDICAS | R21: TOTAL DE DÍAS NO LABORADOS
D22: H | E22: M | F22: T | G22: H | H22: M | I22: T | K22: I | L22: P.D. | M22: D.N.L.I y P.D. | N22: L.E. | O22: D.N.L.E. | P22: L.M. | Q22: D.N.L.M. | R22: DNLI y PD, DNLE, DNLM
B23: Grales. | D23: 80 | E23: 173 | F23: =IF(SUM(D23,E23)=0,"",SUM(D23,E23)) -> 253 | G23: 234 | H23: 305 | I23: =IF(SUM(G23,H23)=0,"",SUM(G23,H23)) -> 539 | J23: 210 | K23: 222 | L23: 166 | M23: =IF(SUM(K23,L23)=0,"",SUM(K23,L23)) -> 388 | N23: 330 | O23: 883 | P23: 183 | Q23: 1507 | R23: =IF(SUM(M23,O23,Q23)=0,"0",SUM(M23,O23,Q23)) -> 2778
B24: Técs. | D24: 80 | E24: 95 | F24: 175 | G24: 141 | H24: 158 | I24: 299 | J24: 96 | K24: 77 | L24: 45 | M24: 122 | N24: 237 | O24: 616 | P24: 141 | Q24: 614 | R24: 1352
B25: Telesec. | D25: 0 | E25: 0 | F25: 0 | G25: 61 | H25: 51 | I25: 112 | J25: 0 | K25: 6 | L25: 11 | M25: 17 | N25: 50 | O25: 150 | P25: 22 | Q25: 87 | R25: 254
B26: Total | D26: =SUM(D23:D25) -> 160 | E26: 268 | F26: 428 | G26: 436 | H26: 514 | I26: 950 | J26: 306 | K26: 305 | L26: 222 | M26: 527 | N26: 617 | O26: 1649 | P26: 346 | Q26: 2208 | R26: 4384
C28: NOTA: | L28: NOTA:
C29: I.: INASISTENCIAS | L29: H.N.L.E.: HORAS NO LABORADOS POR LICENCIAS ECONÓMICAS
C30: H.N.L.I.: HORAS NO LABORADAS POR INASISTENCIAS | L30: D.N.L.E.: DÍAS NO LABORADOS POR LICENCIAS ECONÓMICAS
C31: D.N.L.I.: DÍAS NO LABORADOS POR INASISTENCIAS | L31: L.M.: PERSONAS QUE PRESENTARON LICENCIAS MÉDICAS
C32: R. : CANTIDAD DE RETARDOS | L32: H.N.L.M.: HORAS NO LABORADAS POR LICENCIAS MÉDICAS
C33: L.E.: PERSONAL QUE SOLICITÓ LICENCIAS ECONÓMICAS | L33: D.N.L.M.: DÍAS NO LABORADOS POR LICENCIAS MÉDICAS
C34: P.D.: PERMISOS DIRECCIÓN
